fUSD/lending_fUSD_20260517
["ID","MTS","AMOUNT","RATE_DAILY","PERIOD"]
[422453405,1778964642000,-500.0,0.00024932,2]
[422453409,1778964642000,-500.0,0.00024932,2]
[422453412,1778964642000,-500.0,0.00024932,2]
[422453428,1778964642000,-500.0,0.00024932,2]
[422453410,1778964642000,-500.0,0.00024932,2]
[422453411,1778964642000,-500.0,0.00024932,2]
[422453406,1778964642000,-500.0,0.00024932,2]
[422453415,1778964642000,-500.0,0.00024932,2]
[422453425,1778964642000,-500.0,0.00024932,2]
[422453414,1778964642000,-500.0,0.00024932,2]
[422453420,1778964642000,-500.0,0.00024932,2]
[422453419,1778964642000,-500.0,0.00024932,2]
[422453426,1778964642000,-500.0,0.00024932,2]
[422453424,1778964642000,-500.0,0.00024932,2]
[422453418,1778964642000,-500.0,0.00024932,2]
[422453417,1778964642000,-500.0,0.00024932,2]
[422453421,1778964642000,-500.0,0.00024932,2]
[422453416,1778964642000,-500.0,0.00024932,2]
[422453422,1778964642000,-500.0,0.00024932,2]
[422453407,1778964642000,-500.0,0.00024932,2]
[422453463,1778964642000,-151.0,0.00024932,2]
[422453479,1778964642000,-269.840528,0.00024932,2]
[422453464,1778964642000,-151.0,0.00024932,2]
[422453510,1778964642000,-465.51149616,0.00025,2]
[422453504,1778964642000,-1665.674671,0.00024932,2]
[422453502,1778964642000,-1665.674671,0.00024932,2]
[422453509,1778964642000,-209.40437684,0.00025,2]
[422453505,1778964642000,-151.0,0.00024932,2]
[422453507,1778964642000,-151.0,0.00024932,2]
[422453511,1778964642000,-223.16459096,0.00025,2]
[422453513,1778964642000,-746.0,0.00025,2]
[422453503,1778964642000,-1665.674671,0.00024932,2]
[422453506,1778964642000,-151.0,0.00024932,2]
[422453512,1778964642000,-579.96426354,0.00025,2]
[422453457,1778964642000,-151.0,0.00024932,2]
[422453514,1778964642000,-213.90251706,0.00025,2]
[422453520,1778964642000,-1400.0,0.00025051,2]
[422453517,1778964642000,-292.39833639,0.00025,2]
[422453525,1778964642000,-1400.0,0.00025051,2]
[422453516,1778964642000,-889.24247352,0.00025,2]
[422453519,1778964642000,-1400.0,0.00025051,2]
[422453515,1778964642000,-227.89157137,0.00025,2]
[422453518,1778964642000,-158.83,0.00025006,2]
[422453523,1778964642000,-1400.0,0.00025051,2]
[422453522,1778964642000,-1400.0,0.00025051,2]
[422453524,1778964642000,-1400.0,0.00025051,2]
[422453521,1778964642000,-1400.0,0.00025051,2]
[422453528,1778964642000,-1248.0,0.00025051,2]
[422453530,1778964642000,-465.51149616,0.000253,2]
[422453527,1778964642000,-1400.0,0.00025051,2]
[422453529,1778964642000,-405.32480784,0.00025154,2]
[422453531,1778964642000,-465.51149616,0.000255,2]
[422453508,1778964642000,-273.878754,0.00024932,2]
[422453498,1778964642000,-151.0,0.00024932,2]
[422453526,1778964642000,-1400.0,0.00025051,2]
[422453487,1778964642000,-184.204153,0.00024932,2]
[422453500,1778964642000,-1665.674671,0.00024932,2]
[422453462,1778964642000,-151.0,0.00024932,2]
[422453459,1778964642000,-151.0,0.00024932,2]
[422453465,1778964642000,-151.0,0.00024932,2]
[422453458,1778964642000,-151.0,0.00024932,2]
[422453467,1778964642000,-246.575879,0.00024932,2]
[422453469,1778964642000,-246.575879,0.00024932,2]
[422453471,1778964642000,-151.0,0.00024932,2]
[422453470,1778964642000,-958.203773,0.00024932,2]
[422453475,1778964642000,-151.0,0.00024932,2]
[422453472,1778964642000,-958.203773,0.00024932,2]
[422453473,1778964642000,-958.203773,0.00024932,2]
[422453474,1778964642000,-958.203773,0.00024932,2]
[422453468,1778964642000,-246.575879,0.00024932,2]
[422453478,1778964642000,-269.840528,0.00024932,2]
[422453460,1778964642000,-151.0,0.00024932,2]
[422453477,1778964642000,-269.840528,0.00024932,2]
[422453476,1778964642000,-151.0,0.00024932,2]
[422453486,1778964642000,-470.754368,0.00024932,2]
[422453490,1778964642000,-151.0,0.00024932,2]
[422453483,1778964642000,-470.754368,0.00024932,2]
[422453488,1778964642000,-184.204153,0.00024932,2]
[422453484,1778964642000,-470.754368,0.00024932,2]
[422453489,1778964642000,-184.204153,0.00024932,2]
[422453496,1778964642000,-151.0,0.00024932,2]
[422453492,1778964642000,-151.0,0.00024932,2]
[422453494,1778964642000,-151.0,0.00024932,2]
[422453480,1778964642000,-269.840528,0.00024932,2]
[422453482,1778964642000,-470.754368,0.00024932,2]
[422453485,1778964642000,-184.204153,0.00024932,2]
[422453481,1778964642000,-151.0,0.00024932,2]
[422453571,1778964643000,-444.845595,0.00027339,2]
[422453565,1778964643000,-308.0,0.000267,2]
[422453574,1778964643000,-276.85543865,0.00027397,30]
[422453573,1778964643000,-276.85799852,0.00027397,2]
[422453572,1778964643000,-1813.22,0.00027387,7]
[422453566,1778964643000,-500.0,0.00026849,2]
[422453564,1778964643000,-314.0,0.000267,2]
[422453567,1778964643000,-214.0,0.000271,7]
[422453569,1778964643000,-546.0,0.00027137,2]
[422453568,1778964643000,-150.0,0.00027123,20]
[422453575,1778964643000,-1500.0,0.00027397,2]
[422453570,1778964643000,-300.97553011,0.00027192,2]
[422453577,1778964643000,-284.289204,0.00027397,2]
[422453584,1778964643000,-374.778137,0.00027397,2]
[422453586,1778964643000,-374.778137,0.00027397,2]
[422453578,1778964643000,-284.289204,0.00027397,2]
[422453579,1778964643000,-284.289204,0.00027397,2]
[422453587,1778964643000,-151.0,0.00027397,2]
[422453576,1778964643000,-9493.50720769,0.00027397,21]
[422453580,1778964643000,-284.289204,0.00027397,2]
[422453583,1778964643000,-374.778137,0.00027397,2]
[422453582,1778964643000,-300.0,0.00027397,2]
[422453585,1778964643000,-374.778137,0.00027397,2]
[422453581,1778964643000,-151.0,0.00027397,2]
[422453589,1778964643000,-463.691199,0.00027397,2]
[422453599,1778964643000,-9430.47,0.00027397,10]
[422453588,1778964643000,-463.691199,0.00027397,2]
[422453558,1778964643000,-225.18697532,0.00026096,2]
[422453559,1778964643000,-517.2,0.00026296,2]
[422453596,1778964643000,-2123.786567,0.00027397,2]
[422453560,1778964643000,-888.0,0.00026517,2]
[422453539,1778964643000,-363.0,0.00025697,2]
[422453538,1778964643000,-888.0,0.00025695,2]
[422453534,1778964643000,-217.15233878,0.00025548,2]
[422453533,1778964643000,-1813.22,0.0002554,7]
[422453532,1778964643000,-1229.72,0.000255,7]
[422453537,1778964643000,-276.85799852,0.00025685,2]
[422453536,1778964643000,-9283.72038676,0.0002564,2]
[422453535,1778964643000,-402.79892166,0.00025609,2]
[422453541,1778964643000,-926.0,0.00025697,2]
[422453543,1778964643000,-1354.0,0.00025697,2]
[422453542,1778964643000,-625.0,0.00025697,2]
[422453540,1778964643000,-3543.0,0.00025697,2]
[422453545,1778964643000,-1270.0,0.00025697,2]
[422453547,1778964643000,-417.0,0.00025697,2]
[422453548,1778964643000,-150.0,0.00025697,2]
[422453544,1778964643000,-150.0,0.00025697,2]
[422453550,1778964643000,-6054.0,0.00025697,2]
[422453549,1778964643000,-150.0,0.00025697,2]
[422453557,1778964643000,-465.51149616,0.00026,2]
[422453563,1778964643000,-1000.0,0.000267,2]
[422453555,1778964643000,-465.51149616,0.000258,2]
[422453561,1778964643000,-276.85799852,0.00026541,2]
[422453552,1778964643000,-462.3,0.00025786,2]
[422453562,1778964643000,-233.51889341,0.00026644,2]
[422453553,1778964643000,-1675.19,0.00025786,2]
[422453556,1778964643000,-700.0,0.000259,9]
[422453551,1778964643000,-1647.13,0.00025786,2]
[422453554,1778964643000,-3397.24,0.00025786,2]
[422453590,1778964643000,-463.691199,0.00027397,2]
[422453546,1778964643000,-1223.0,0.00025697,2]
[422453593,1778964643000,-151.0,0.00027397,2]
[422453637,1778964643000,-1362.61,0.00028637,2]
[422453625,1778964643000,-2273.0,0.000285,7]
[422453627,1778964643000,-392.66924966,0.00028523,21]
[422453628,1778964643000,-1078.25,0.000286,7]
[422453629,1778964643000,-404.07,0.000286,7]
[422453630,1778964643000,-380.9,0.0002863,2]
[422453632,1778964643000,-379.94,0.0002863,2]
[422453631,1778964643000,-2927.68,0.0002863,2]
[422453635,1778964643000,-390.31,0.00028633,2]
[422453633,1778964643000,-2923.84,0.0002863,2]
[422453634,1778964643000,-390.46,0.00028633,2]
[422453639,1778964643000,-2927.68,0.00028661,7]
[422453638,1778964643000,-380.9,0.00028661,7]
[422453640,1778964643000,-379.94,0.00028661,7]
[422453646,1778964643000,-380.9,0.00028693,30]
[422453645,1778964643000,-1362.61,0.00028668,7]
[422453641,1778964643000,-2923.84,0.00028661,7]
[422453643,1778964643000,-390.31,0.00028664,7]
[422453649,1778964643000,-2923.84,0.00028693,30]
[422453647,1778964643000,-2927.68,0.00028693,30]
[422453644,1778964643000,-1360.64,0.00028667,7]
[422453642,1778964643000,-390.46,0.00028664,7]
[422453648,1778964643000,-379.94,0.00028693,30]
[422453651,1778964643000,-390.31,0.00028696,30]
[422453653,1778964643000,-926.0,0.00028697,2]
[422453650,1778964643000,-390.46,0.00028696,30]
[422453652,1778964643000,-3543.0,0.00028697,2]
[422453636,1778964643000,-1360.64,0.00028636,2]
[422453626,1778964643000,-9493.5072077,0.00028523,21]
[422453591,1778964643000,-463.691199,0.00027397,2]
[422453624,1778964643000,-2166.0,0.000285,7]
[422453594,1778964643000,-151.0,0.00027397,2]
[422453595,1778964643000,-2123.786567,0.00027397,2]
[422453592,1778964643000,-679.41,0.00027397,2]
[422453598,1778964643000,-2123.786567,0.00027397,2]
[422453597,1778964643000,-2123.786567,0.00027397,2]
[422453600,1778964643000,-12960.82,0.00027397,10]
[422453609,1778964643000,-1000.0,0.00027999,10]
[422453623,1778964643000,-2166.0,0.000285,7]
[422453603,1778964643000,-166.77041051,0.00027397,30]
[422453604,1778964643000,-1078.25,0.000274,7]
[422453605,1778964643000,-7876.47,0.000274,14]
[422453612,1778964643000,-186.4,0.00028,2]
[422453602,1778964643000,-150.0,0.00027397,2]
[422453608,1778964643000,-500.0,0.000278,7]
[422453601,1778964643000,-10800.68,0.00027397,10]
[422453606,1778964643000,-404.07,0.000274,7]
[422453611,1778964643000,-215.03962261,0.00028,10]
[422453617,1778964643000,-1374.0,0.00028459,5]
[422453615,1778964643000,-450.0,0.00028344,2]
[422453621,1778964643000,-7876.47,0.000285,14]
[422453618,1778964643000,-1097.0,0.00028459,5]
[422453622,1778964643000,-1229.72,0.000285,7]
[422453619,1778964643000,-704.7051106,0.0002846,2]
[422453620,1778964643000,-161.0,0.0002848,3]
[422453616,1778964643000,-437.4,0.00028344,2]
[422453613,1778964643000,-546.0,0.00028205,3]
[422453607,1778964643000,-546.0,0.00027671,2]
[422453610,1778964643000,-208.44072055,0.00028,10]
[422453614,1778964643000,-517.2,0.00028267,2]
[422453691,1778964644000,-276.85543865,0.00028767,30]
[422453695,1778964644000,-379.94,0.00028788,30]
[422453690,1778964644000,-1362.61,0.00028762,7]
[422453692,1778964644000,-151.0,0.00028767,7]
[422453689,1778964644000,-1360.64,0.00028761,7]
[422453683,1778964644000,-380.9,0.00028756,7]
[422453698,1778964644000,-390.31,0.0002879,30]
[422453699,1778964644000,-1362.61,0.00028793,30]
[422453700,1778964644000,-1360.64,0.00028793,30]
[422453688,1778964644000,-390.31,0.00028759,7]
[422453679,1778964644000,-390.31,0.00028727,2]
[422453687,1778964644000,-390.46,0.00028759,7]
[422453697,1778964644000,-390.46,0.0002879,30]
[422453704,1778964644000,-380.9,0.0002882,2]
[422453693,1778964644000,-380.9,0.00028788,30]
[422453694,1778964644000,-2927.68,0.00028788,30]
[422453702,1778964644000,-4150.0,0.00028801,30]
[422453712,1778964644000,-750.0,0.00028836,2]
[422453703,1778964644000,-4115.0,0.00028801,30]
[422453701,1778964644000,-4150.0,0.00028801,30]
[422453705,1778964644000,-2927.68,0.0002882,2]
[422453711,1778964644000,-1362.61,0.00028825,2]
[422453706,1778964644000,-379.94,0.0002882,2]
[422453710,1778964644000,-1360.64,0.00028824,2]
[422453709,1778964644000,-390.31,0.00028822,2]
[422453708,1778964644000,-390.46,0.00028822,2]
[422453682,1778964644000,-546.0,0.00028739,3]
[422453696,1778964644000,-2923.84,0.00028788,30]
[422453677,1778964644000,-151.0,0.00028725,7]
[422453667,1778964644000,-379.94,0.00028725,2]
[422453675,1778964644000,-151.0,0.00028725,7]
[422453714,1778964644000,-750.0,0.00028836,2]
[422453661,1778964644000,-150.0,0.00028697,2]
[422453655,1778964644000,-1354.0,0.00028697,2]
[422453658,1778964644000,-1223.0,0.00028697,2]
[422453660,1778964644000,-150.0,0.00028697,2]
[422453656,1778964644000,-150.0,0.00028697,2]
[422453657,1778964644000,-1270.0,0.00028697,2]
[422453654,1778964644000,-625.0,0.00028697,2]
[422453659,1778964644000,-417.0,0.00028697,2]
[422453662,1778964644000,-6054.0,0.00028697,2]
[422453674,1778964644000,-186.665029,0.00028725,7]
[422453673,1778964644000,-151.0,0.00028725,7]
[422453665,1778964644000,-380.9,0.00028725,2]
[422453666,1778964644000,-2927.68,0.00028725,2]
[422453663,1778964644000,-1360.64,0.00028698,30]
[422453664,1778964644000,-1362.61,0.00028699,30]
[422453668,1778964644000,-151.0,0.00028725,7]
[422453669,1778964644000,-2923.84,0.00028725,2]
[422453672,1778964644000,-151.0,0.00028725,7]
[422453671,1778964644000,-186.665029,0.00028725,7]
[422453670,1778964644000,-186.665029,0.00028725,7]
[422453676,1778964644000,-151.0,0.00028725,7]
[422453686,1778964644000,-2923.84,0.00028756,7]
[422453678,1778964644000,-390.46,0.00028727,2]
[422453680,1778964644000,-1360.64,0.0002873,2]
[422453684,1778964644000,-2927.68,0.00028756,7]
[422453681,1778964644000,-1362.61,0.00028731,2]
[422453685,1778964644000,-379.94,0.00028756,7]
[422453724,1778964644000,-380.9,0.00028883,30]
[422453707,1778964644000,-2923.84,0.0002882,2]
[422453715,1778964644000,-750.0,0.00028836,2]
[422453748,1778964644000,-390.46,0.00028948,7]
[422453750,1778964644000,-1362.61,0.0002895,7]
[422453760,1778964644000,-390.31,0.0002898,30]
[422453749,1778964644000,-390.31,0.00028948,7]
[422453759,1778964644000,-390.46,0.0002898,30]
[422453751,1778964644000,-1360.64,0.0002895,7]
[422453756,1778964644000,-2927.68,0.00028979,30]
[422453752,1778964644000,-200.53130199,0.00028955,2]
[422453758,1778964644000,-2923.84,0.00028979,30]
[422453753,1778964644000,-871.24620306,0.00028955,2]
[422453754,1778964644000,-3602.47082069,0.00028955,2]
[422453761,1778964644000,-1362.61,0.00028981,30]
[422453757,1778964644000,-379.94,0.00028979,30]
[422453742,1778964644000,-169.15,0.00028943,3]
[422453762,1778964644000,-1360.64,0.00028981,30]
[422453764,1778964644000,-380.9,0.0002901,2]
[422453763,1778964644000,-208.44072055,0.00029,7]
[422453766,1778964644000,-379.94,0.0002901,2]
[422453771,1778964644000,-1362.61,0.00029013,2]
[422453772,1778964644000,-170.11824265,0.00029034,2]
[422453765,1778964644000,-2927.68,0.0002901,2]
[422453769,1778964644000,-390.31,0.00029011,2]
[422453767,1778964644000,-2923.84,0.0002901,2]
[422453768,1778964644000,-390.46,0.00029011,2]
[422453770,1778964644000,-1360.64,0.00029012,2]
[422453774,1778964644000,-2927.68,0.00029042,7]
[422453775,1778964644000,-379.94,0.00029042,7]
[422453716,1778964644000,-380.9,0.00028852,7]
[422453773,1778964644000,-380.9,0.00029042,7]
[422453739,1778964644000,-390.31,0.00028917,2]
[422453755,1778964644000,-380.9,0.00028979,30]
[422453740,1778964644000,-1360.64,0.00028918,2]
[422453743,1778964644000,-169.15,0.00028943,3]
[422453713,1778964644000,-750.0,0.00028836,2]
[422453717,1778964644000,-2927.68,0.00028852,7]
[422453718,1778964644000,-379.94,0.00028852,7]
[422453719,1778964644000,-2923.84,0.00028852,7]
[422453720,1778964644000,-390.46,0.00028854,7]
[422453722,1778964644000,-1360.64,0.00028855,7]
[422453721,1778964644000,-390.31,0.00028854,7]
[422453726,1778964644000,-379.94,0.00028883,30]
[422453728,1778964644000,-390.46,0.00028885,30]
[422453725,1778964644000,-2927.68,0.00028883,30]
[422453727,1778964644000,-2923.84,0.00028883,30]
[422453729,1778964644000,-390.31,0.00028885,30]
[422453734,1778964644000,-380.9,0.00028915,2]
[422453723,1778964644000,-1362.61,0.00028856,7]
[422453741,1778964644000,-1362.61,0.00028919,2]
[422453731,1778964644000,-1360.64,0.00028887,30]
[422453738,1778964644000,-390.46,0.00028917,2]
[422453737,1778964644000,-2923.84,0.00028915,2]
[422453746,1778964644000,-379.94,0.00028947,7]
[422453735,1778964644000,-2927.68,0.00028915,2]
[422453744,1778964644000,-380.9,0.00028947,7]
[422453747,1778964644000,-2923.84,0.00028947,7]
[422453736,1778964644000,-379.94,0.00028915,2]
[422453730,1778964644000,-1362.61,0.00028887,30]
[422453733,1778964644000,-170.386,0.000289,21]
[422453732,1778964644000,-2836.391,0.000289,21]
[422453745,1778964644000,-2927.68,0.00028947,7]
[422453819,1778964645000,-390.31,0.00029075,30]
[422453823,1778964645000,-379.94,0.00029105,2]
[422453826,1778964645000,-390.31,0.00029106,2]
[422453828,1778964645000,-1360.64,0.00029107,2]
[422453818,1778964645000,-1360.64,0.00029075,30]
[422453814,1778964645000,-379.94,0.00029074,30]
[422453807,1778964645000,-500.0,0.00029074,2]
[422453822,1778964645000,-2927.68,0.00029105,2]
[422453820,1778964645000,-1362.61,0.00029076,30]
[422453808,1778964645000,-500.0,0.00029074,2]
[422453810,1778964645000,-500.0,0.00029074,2]
[422453816,1778964645000,-2923.84,0.00029074,30]
[422453817,1778964645000,-390.46,0.00029075,30]
[422453821,1778964645000,-380.9,0.00029105,2]
[422453836,1778964645000,-390.31,0.00029138,7]
[422453827,1778964645000,-1362.61,0.00029107,2]
[422453824,1778964645000,-2923.84,0.00029105,2]
[422453829,1778964645000,-380.9,0.00029137,7]
[422453831,1778964645000,-379.94,0.00029137,7]
[422453832,1778964645000,-2923.84,0.00029137,7]
[422453830,1778964645000,-2927.68,0.00029137,7]
[422453841,1778964645000,-2923.84,0.00029169,30]
[422453838,1778964645000,-2927.68,0.00029169,30]
[422453834,1778964645000,-390.46,0.00029138,7]
[422453840,1778964645000,-379.94,0.00029169,30]
[422453837,1778964645000,-380.9,0.00029169,30]
[422453839,1778964645000,-390.46,0.00029169,30]
[422453835,1778964645000,-1360.64,0.00029138,7]
[422453809,1778964645000,-500.0,0.00029074,2]
[422453825,1778964645000,-390.46,0.00029106,2]
[422453811,1778964645000,-757.0,0.00029074,2]
[422453785,1778964645000,-500.0,0.00029074,2]
[422453813,1778964645000,-2927.68,0.00029074,30]
[422453833,1778964645000,-1362.61,0.00029138,7]
[422453776,1778964645000,-2923.84,0.00029042,7]
[422453777,1778964645000,-390.46,0.00029043,7]
[422453786,1778964645000,-500.0,0.00029074,2]
[422453778,1778964645000,-390.31,0.00029043,7]
[422453783,1778964645000,-500.0,0.00029074,2]
[422453782,1778964645000,-500.0,0.00029074,2]
[422453780,1778964645000,-1360.64,0.00029044,7]
[422453779,1778964645000,-1362.61,0.00029044,7]
[422453781,1778964645000,-500.0,0.00029074,2]
[422453788,1778964645000,-500.0,0.00029074,2]
[422453798,1778964645000,-500.0,0.00029074,2]
[422453799,1778964645000,-500.0,0.00029074,2]
[422453800,1778964645000,-500.0,0.00029074,2]
[422453804,1778964645000,-500.0,0.00029074,2]
[422453791,1778964645000,-500.0,0.00029074,2]
[422453790,1778964645000,-500.0,0.00029074,2]
[422453796,1778964645000,-500.0,0.00029074,2]
[422453794,1778964645000,-500.0,0.00029074,2]
[422453789,1778964645000,-500.0,0.00029074,2]
[422453795,1778964645000,-500.0,0.00029074,2]
[422453793,1778964645000,-500.0,0.00029074,2]
[422453792,1778964645000,-500.0,0.00029074,2]
[422453797,1778964645000,-500.0,0.00029074,2]
[422453801,1778964645000,-500.0,0.00029074,2]
[422453802,1778964645000,-500.0,0.00029074,2]
[422453803,1778964645000,-500.0,0.00029074,2]
[422453812,1778964645000,-380.9,0.00029074,30]
[422453805,1778964645000,-500.0,0.00029074,2]
[422453806,1778964645000,-500.0,0.00029074,2]
[422453787,1778964645000,-500.0,0.00029074,2]
[422453843,1778964645000,-1362.61,0.0002917,30]
[422453784,1778964645000,-500.0,0.00029074,2]
[422453842,1778964645000,-390.31,0.00029169,30]
[422453872,1778964645000,-1078.25,0.000298,7]
[422453877,1778964645000,-1000.0,0.00029999,24]
[422453881,1778964645000,-2000.0,0.0003,2]
[422453884,1778964645000,-705.09034753,0.000301,2]
[422453885,1778964645000,-705.09034751,0.000301,2]
[422453889,1778964645000,-286.84,0.00030137,2]
[422453883,1778964645000,-214.0,0.000301,7]
[422453891,1778964645000,-152.0,0.00030149,30]
[422453882,1778964645000,-1000.0,0.00030079,15]
[422453888,1778964645000,-200.0,0.00030137,2]
[422453887,1778964645000,-679.41,0.00030137,2]
[422453890,1778964645000,-276.85543865,0.00030137,30]
[422453886,1778964645000,-705.09034751,0.000301,2]
[422453894,1778964645000,-577.0,0.00030149,30]
[422453876,1778964645000,-500.0,0.00029808,90]
[422453893,1778964645000,-151.0,0.00030149,30]
[422453895,1778964645000,-740.0,0.00030149,30]
[422453897,1778964645000,-213.0,0.00030149,30]
[422453899,1778964645000,-274.0,0.00030156,30]
[422453896,1778964645000,-212.0,0.00030149,30]
[422453901,1778964645000,-517.2,0.00030239,2]
[422453906,1778964645000,-306.36596259,0.00030567,2]
[422453903,1778964645000,-1000.0,0.0003034,5]
[422453900,1778964645000,-218.0,0.00030156,30]
[422453898,1778964645000,-880.0,0.00030149,30]
[422453907,1778964645000,-309.14468886,0.00030567,7]
[422453905,1778964645000,-1229.72,0.000304,7]
[422453902,1778964645000,-170.86,0.0003033,120]
[422453904,1778964645000,-546.0,0.00030341,5]
[422453853,1778964645000,-390.31,0.00029201,2]
[422453892,1778964645000,-206.0,0.00030149,30]
[422453871,1778964645000,-404.07,0.000297,7]
[422453908,1778964645000,-353.99624591,0.00030567,7]
[422453873,1778964645000,-1000.0,0.00029806,4]
[422453875,1778964645000,-500.0,0.00029808,90]
[422453844,1778964645000,-1360.64,0.0002917,30]
[422453845,1778964645000,-9283.72038676,0.0002918,2]
[422453850,1778964645000,-379.94,0.00029201,2]
[422453852,1778964645000,-2923.84,0.00029201,2]
[422453846,1778964645000,-1362.61,0.00029201,2]
[422453847,1778964645000,-380.9,0.00029201,2]
[422453851,1778964645000,-1360.64,0.00029201,2]
[422453848,1778964645000,-2927.68,0.00029201,2]
[422453854,1778964645000,-153.1829813,0.00029207,2]
[422453856,1778964645000,-176.99812295,0.00029207,7]
[422453855,1778964645000,-154.57234443,0.00029207,7]
[422453859,1778964645000,-381.04,0.00029232,7]
[422453858,1778964645000,-1362.62,0.00029232,7]
[422453862,1778964645000,-379.96,0.00029232,7]
[422453849,1778964645000,-390.46,0.00029201,2]
[422453865,1778964645000,-390.49,0.00029232,7]
[422453860,1778964645000,-2927.7,0.00029232,7]
[422453870,1778964645000,-180.48177615,0.00029692,4]
[422453879,1778964645000,-1500.0,0.0003,3]
[422453880,1778964645000,-215.03962261,0.0003,7]
[422453867,1778964645000,-546.0,0.00029273,4]
[422453878,1778964645000,-215.03962261,0.0003,30]
[422453869,1778964645000,-7876.47,0.000296,14]
[422453861,1778964645000,-390.51,0.00029232,7]
[422453864,1778964645000,-2924.01,0.00029232,7]
[422453868,1778964645000,-150.0,0.00029534,2]
[422453857,1778964645000,-174.88300058,0.00029207,7]
[422453874,1778964645000,-546.0,0.00029807,4]
[422453866,1778964645000,-1813.22,0.00029233,7]
[422453863,1778964645000,-1360.64,0.00029232,7]
[422453950,1778964646000,-1000.0,0.00031408,6]
[422453942,1778964646000,-740.0,0.00031149,30]
[422453939,1778964646000,-206.0,0.00031149,30]
[422453946,1778964646000,-350.0,0.00031156,2]
[422453941,1778964646000,-577.0,0.00031149,30]
[422453945,1778964646000,-880.0,0.00031149,30]
[422453944,1778964646000,-213.0,0.00031149,30]
[422453959,1778964646000,-459.54894389,0.00031474,2]
[422453949,1778964646000,-500.0,0.00031219,120]
[422453960,1778964646000,-463.71703329,0.00031474,7]
[422453951,1778964646000,-546.0,0.00031409,6]
[422453947,1778964646000,-274.0,0.00031156,30]
[422453940,1778964646000,-151.0,0.00031149,30]
[422453956,1778964646000,-200.25692844,0.00031474,7]
[422453948,1778964646000,-218.0,0.00031156,30]
[422453953,1778964646000,-259.70975591,0.00031474,7]
[422453954,1778964646000,-262.33542854,0.00031474,7]
[422453955,1778964646000,-204.48407923,0.00031474,7]
[422453958,1778964646000,-289.94643154,0.00031474,7]
[422453957,1778964646000,-289.09716566,0.00031474,7]
[422453961,1778964646000,-530.99436886,0.00031474,7]
[422453963,1778964646000,-207.56855496,0.00031474,7]
[422453966,1778964646000,-524.64900173,0.00031474,7]
[422453965,1778964646000,-248.18147068,0.00031474,7]
[422453943,1778964646000,-212.0,0.00031149,30]
[422453962,1778964646000,-206.13548185,0.00031474,7]
[422453952,1778964646000,-164.68699442,0.00031474,7]
[422453936,1778964646000,-1813.22,0.0003108,7]
[422453923,1778964646000,-500.0,0.0003078,2]
[422453937,1778964646000,-200.0,0.00031096,2]
[422453964,1778964646000,-241.24251113,0.00031474,7]
[422453911,1778964646000,-1000.0,0.00030647,3]
[422453913,1778964646000,-700.0,0.00030758,2]
[422453921,1778964646000,-500.0,0.0003078,2]
[422453912,1778964646000,-404.07,0.000307,7]
[422453914,1778964646000,-700.0,0.00030758,2]
[422453910,1778964646000,-7876.47,0.000306,14]